fUST/lending_fUST_20240922
["ID","MTS","AMOUNT","RATE_DAILY","PERIOD"]
[338882196,1727002025263,-300.0,0.00015999,2]
[338882197,1727002025289,-300.0,0.00015999,2]
[338882198,1727002025311,-1000.0,0.00016,2]
[338882199,1727002025334,-1000.0,0.00016,2]
[338882200,1727002025356,-856.41568064,0.00016,2]
[338882204,1727002042199,-143.58431936,0.00016,2]
[338882205,1727002042221,-415.87462282,0.00016,2]
[338882216,1727002164157,-405.45491489,0.000159,2]
[338882217,1727002164178,-405.45491488,0.0001593,2]
[338882218,1727002164199,-405.45491488,0.0001596,2]
[338882219,1727002164220,-405.45491488,0.0001599,2]
[338882220,1727002164242,-300.0,0.00015999,2]
[338882221,1727002164265,-300.0,0.00015999,2]
[338882222,1727002164289,-584.12537718,0.00016,2]
[338882223,1727002164311,-1000.0,0.00016,2]
[338882224,1727002164332,-1000.0,0.00016,2]
[338882225,1727002164354,-1000.0,0.00016,2]
[338882226,1727002164376,-270.0,0.00016,2]
[338882227,1727002164397,-1000.0,0.00016,2]
[338882228,1727002164419,-1000.0,0.00016,2]
[338882229,1727002164440,-1000.0,0.00016,2]
[338882230,1727002164462,-1000.0,0.00016,2]
[338882231,1727002164485,-1000.0,0.00016,2]
[338882232,1727002164510,-1000.0,0.00016,2]
[338882233,1727002164532,-1000.0,0.00016,2]
[338882234,1727002164556,-1000.0,0.00016,2]
[338882235,1727002164577,-1000.0,0.00016,2]
[338882236,1727002164598,-1000.0,0.00016,2]
[338882237,1727002164619,-1000.0,0.00016,2]
[338882238,1727002164643,-1000.0,0.00016,2]
[338882239,1727002164664,-1000.0,0.00016,2]
[338882240,1727002164685,-1000.0,0.00016,2]
[338882241,1727002164707,-817.0,0.00016,2]
[338882242,1727002164730,-233.33635743,0.00016,2]
[338882243,1727002164752,-405.45491488,0.0001602,2]
[338882244,1727002164773,-405.45491488,0.00016049,2]
[338882245,1727002164794,-405.45491488,0.00016079,2]
[338882246,1727002164816,-405.45491488,0.00016109,2]
[338882247,1727002164838,-223.46780107,0.00016139,2]
[338882248,1727002173143,-181.98711381,0.00016139,2]
[338882249,1727002173165,-405.45491488,0.00016169,2]
[338882250,1727002173187,-405.45491488,0.00016199,2]
[338882251,1727002173208,-405.45491488,0.00016229,2]
[338882252,1727002173340,-2093.32593697,0.00016468,2]
[338882253,1727002173364,-24900.0,0.00016474,2]
[338882254,1727002173387,-206.398884,0.00016568,2]
[338882255,1727002173408,-2138.2500779,0.00016646,2]
[338882256,1727002173443,-329.7021918,0.0001668,2]
[338882257,1727002173472,-420.0,0.00017492,2]
[338882258,1727002173495,-420.0,0.00017599,2]
[338882259,1727002173521,-250.0,0.00017954,2]
[338882260,1727002173549,-250.0,0.00018003,2]
[338882261,1727002173576,-250.0,0.00018052,2]
[338882262,1727002173600,-250.0,0.00018101,2]
[338882263,1727002173625,-250.0,0.00018151,2]
[338882264,1727002173650,-250.0,0.000182,2]
[338882265,1727002173673,-250.0,0.00018249,2]
[338882266,1727002173696,-250.0,0.00018298,2]
[338882267,1727002173720,-250.0,0.00018348,2]
[338882268,1727002173749,-250.0,0.00018397,2]
[338882269,1727002173773,-250.0,0.00018446,2]
[338882270,1727002173796,-250.0,0.00018495,2]
[338882271,1727002173820,-250.0,0.00018544,2]
[338882272,1727002173843,-250.0,0.00018594,2]
[338882273,1727002173866,-250.0,0.00018643,2]
[338882274,1727002173888,-250.0,0.00018692,2]
[338882275,1727002173912,-250.0,0.00018741,2]
[338882276,1727002173934,-250.0,0.00018791,2]
[338882277,1727002173958,-250.0,0.0001884,2]
[338882278,1727002173980,-250.0,0.00018889,2]
[338882279,1727002174002,-297.55886156,0.00018929,2]
[338882280,1727002174023,-413.12501748,0.00018929,2]
[338882281,1727002174044,-587.0,0.00019125,2]
[338882282,1727002174065,-242.0829454,0.00019178,2]
[338882283,1727002174087,-2093.32593696,0.00019244,2]
[338882284,1727002174109,-587.0,0.00019359,2]
[338882285,1727002174131,-500.64112753,0.00019671,2]
[338882286,1727002174155,-500.0,0.00019875,2]
[338882287,1727002174176,-154.0,0.0002014,2]
[338882288,1727002174198,-500.0,0.0002014,2]
[338882289,1727002174219,-150.0,0.00020181,2]
[338882290,1727002174240,-296.94,0.00020423,2]
[338882291,1727002174261,-190.0,0.00020635,2]
[338882292,1727002174283,-268.0,0.0002091,2]
[338882293,1727002174304,-943.99378175,0.00021,30]
[338882294,1727002174325,-500.0,0.00021,30]
[338882295,1727002174346,-567.97566389,0.00021,30]
[338882296,1727002174368,-500.0,0.00021,30]
[338882297,1727002174390,-500.0,0.00021,30]
[338882298,1727002174412,-3000.0,0.00021,2]
[338882299,1727002174434,-3000.0,0.0002101,2]
[338882300,1727002174456,-3000.0,0.0002102,2]
[338882301,1727002174478,-3000.0,0.0002103,2]
[338882302,1727002174499,-3000.0,0.0002104,2]
[338882303,1727002174521,-3000.0,0.0002105,2]
[338882304,1727002174542,-3000.0,0.0002106,2]
[338882305,1727002174566,-436.11332534,0.0002106,2]
[338882306,1727002174588,-3000.0,0.0002107,2]
[338882307,1727002174611,-3000.0,0.0002108,2]
[338882308,1727002174640,-3000.0,0.0002109,2]
[338882309,1727002174661,-242.0,0.000211,2]
[338882310,1727002174688,-3000.0,0.000211,2]
[338882311,1727002174711,-864.18,0.000211,3]
[338882312,1727002174733,-3000.0,0.0002111,2]
[338882313,1727002174755,-2384.70557408,0.0002111,3]
[338882314,1727002174776,-59336.9040022,0.0002111,3]
[338882315,1727002174797,-3000.0,0.0002112,2]
[338882316,1727002174818,-3000.0,0.0002113,2]
[338882317,1727002174842,-3000.0,0.0002114,2]
[338882318,1727002174865,-3000.0,0.0002115,2]
[338882319,1727002174893,-2384.70557408,0.0002115,3]
[338882320,1727002174914,-33138.34344061,0.0002115,3]
[338882341,1727002232220,-405.45491488,0.00016259,2]
[338882342,1727002232231,-405.45491488,0.00016289,2]
[338882343,1727002232240,-405.45491488,0.00016319,2]
[338882344,1727002232250,-405.45491488,0.00016348,2]
[338882345,1727002232259,-405.45491488,0.00016378,2]
[338882346,1727002232268,-405.45491488,0.00016408,2]
[338882347,1727002232277,-405.45491488,0.00016438,2]
[338882348,1727002232286,-405.45491488,0.00016468,2]
[338882349,1727002232297,-206.3988847,0.0001895,2]
[338882350,1727002232306,-300.0,0.00021149,2]
[338882351,1727002232316,-26198.56056159,0.0002115,3]
[338882352,1727002232326,-3000.0,0.0002116,2]
[338882353,1727002232335,-3000.0,0.0002117,2]
[338882354,1727002232344,-3000.0,0.0002118,2]
[338882355,1727002232354,-243.81003684,0.00021189,2]
[338882356,1727002232363,-197.81603081,0.00021189,2]
[338882357,1727002232373,-238.90087385,0.00021189,2]
[338882358,1727002232383,-198.67281259,0.00021189,2]
[338882359,1727002232392,-500.0,0.00021189,2]
[338882360,1727002232402,-500.0,0.00021189,2]
[338882361,1727002232412,-3000.0,0.0002119,2]
[338882362,1727002232423,-2384.70557408,0.0002119,3]
[338882363,1727002232433,-15366.40456718,0.0002119,3]
[338882491,1727002239226,-716.68371583,0.0002119,3]
[338882494,1727002239246,-16320.5275,0.0002119,3]
[338882496,1727002239259,-1256.38284064,0.0002119,3]
[338882674,1727002241142,-25676.90537855,0.0002119,3]
[338882676,1727002241151,-162.370338,0.0002119,2]
[338882678,1727002241161,-151.0,0.0002119,2]
[338882680,1727002241170,-151.0,0.0002119,2]
[338882682,1727002241182,-151.0,0.0002119,2]
[338882684,1727002241192,-151.0,0.0002119,2]
[338882686,1727002241201,-151.0,0.0002119,2]
[338882688,1727002241211,-151.0,0.0002119,2]
[338882690,1727002241220,-151.0,0.0002119,2]
[338882692,1727002241229,-151.0,0.0002119,2]
[338882694,1727002241239,-151.0,0.0002119,2]
[338882696,1727002241248,-5435.212007,0.0002119,2]
[338882698,1727002241257,-5435.212007,0.0002119,2]
[338882700,1727002241266,-3000.0,0.000212,2]
[338882702,1727002241276,-3000.0,0.0002121,2]
[338882703,1727002241285,-3000.0,0.0002122,2]
[338882705,1727002241295,-3440.927066,0.0002123,2]
[338882707,1727002241304,-166.666666,0.00021918,2]
[338882709,1727002241314,-2000.0,0.00022,2]
[338882711,1727002241323,-2093.32593696,0.0002202,2]
[338882713,1727002241333,-166.666666,0.00022431,2]
[338882715,1727002241342,-166.666666,0.00022944,2]
[338882717,1727002241357,-420.0,0.00023264,2]
[338882719,1727002241366,-166.666666,0.00023456,2]
[338882721,1727002241376,-283.984476,0.000236,3]
[338882723,1727002241385,-6546.92786314,0.00023874,2]
[338882725,1727002241395,-166.666666,0.00023969,2]
[338882727,1727002241404,-304.3291517,0.00024,2]
[338882729,1727002241414,-276.8321908,0.000241,2]
[338882731,1727002241424,-3000.000002,0.00024188,2]
[338882733,1727002241434,-1177.06582521,0.00024194,2]
[338882735,1727002241443,-6546.92786314,0.00024226,2]
[338882737,1727002241452,-150.112233,0.000243,5]
[338882739,1727002241461,-151.0,0.00024312,7]
[338882741,1727002241471,-151.0,0.00024312,7]
[338882742,1727002241480,-151.0,0.00024312,7]
[338882744,1727002241490,-151.0,0.00024312,7]
[338882746,1727002241499,-151.0,0.00024312,7]
[338882748,1727002241510,-151.0,0.00024312,7]
[338882750,1727002241520,-151.0,0.00024312,7]
[338882752,1727002241529,-151.0,0.00024312,7]
[338882754,1727002241538,-151.0,0.00024312,7]
[338882756,1727002241548,-5435.212007,0.00024312,7]
[338882758,1727002241557,-5435.212007,0.00024312,7]
[338882760,1727002241566,-4769.41114816,0.00024312,3]
[338882762,1727002241579,-118673.808004,0.00024312,3]
[338882764,1727002241588,-348.89066024,0.00024354,2]
[338882766,1727002241598,-166.666666,0.00024482,2]
[338882768,1727002241607,-6546.92786314,0.00024504,2]
[338882770,1727002241617,-500.0,0.00024657,2]
[338882772,1727002241626,-356.09443033,0.00024657,2]
[338882774,1727002241635,-500.0,0.00024657,2]
[338882776,1727002241644,-506.89419589,0.00024657,2]
[338882778,1727002241653,-530.56868261,0.00024657,2]
[338882780,1727002241663,-2441.94,0.00024657,2]
[338882781,1727002241672,-500.0,0.00024657,2]
[338882783,1727002241682,-501.10201715,0.00024657,2]
[338882785,1727002241691,-500.0,0.00024657,2]
[338882786,1727002241700,-500.0,0.00024657,2]
[338882787,1727002241710,-558.0,0.00024657,2]
[338882788,1727002241719,-500.0,0.00024657,2]
[338882789,1727002241731,-500.0,0.00024657,2]
[338882791,1727002241741,-500.0,0.00024657,2]
[338882792,1727002241750,-500.0,0.00024657,2]
[338882794,1727002241759,-500.0,0.00024657,2]
[338882796,1727002241769,-500.0,0.00024657,2]
[338882798,1727002241778,-500.0,0.00024657,2]
[338882800,1727002241788,-500.0,0.00024657,2]
[338882802,1727002241797,-500.0,0.00024657,2]
[338882803,1727002241807,-306.66623063,0.00024657,2]
[338882804,1727002241817,-519.77524014,0.00024657,2]
[338882805,1727002241826,-500.0,0.00024657,2]
[338882806,1727002241836,-380.0,0.00024658,2]
[338882808,1727002241845,-200.0,0.00024658,15]
[338882810,1727002241854,-348.89066024,0.00024688,2]
[338882812,1727002241864,-2093.32593696,0.00024796,2]
[338882813,1727002241873,-150.112233,0.000249,5]
[338882814,1727002241882,-6546.92786314,0.00024907,2]
[338882815,1727002241892,-201.82,0.00024931,2]
[338882816,1727002241903,-500.0,0.00024931,2]
[338882817,1727002241912,-2441.94,0.00024931,2]
[338882818,1727002241921,-500.0,0.00024931,2]
[338882820,1727002241931,-153.0,0.00024932,2]
[338882821,1727002241941,-381.98601,0.00024999,2]
[338882823,1727002241950,-500.0,0.00025,30]
[338882825,1727002241959,-500.0,0.00025,30]
[338882827,1727002241968,-500.000001,0.00025,30]
[338882829,1727002241978,-500.0,0.00025,30]
[338882831,1727002241987,-500.0,0.00025,30]
[338882832,1727002241996,-979.80230678,0.00025,30]
[338882834,1727002242006,-500.0,0.00025,30]
[338882835,1727002242015,-500.0,0.00025,30]
[338882836,1727002242024,-500.0,0.00025,30]
[338882837,1727002242033,-500.0,0.00025,30]
[338882839,1727002242043,-500.0,0.00025,30]
[338882840,1727002242052,-500.0,0.00025,30]
[338882841,1727002242062,-2924.71,0.00025,14]
[338882842,1727002242071,-153.0,0.00025,2]
[338882843,1727002242082,-6546.92786314,0.00025019,2]
[338882844,1727002242093,-348.89066024,0.00025022,2]
[338882845,1727002242105,-500.0,0.00025205,2]
[338882846,1727002242115,-2441.94,0.00025205,2]
[338882847,1727002242125,-370.44061048,0.00025205,2]
[338882848,1727002242137,-151.0,0.00025218,7]
[338882849,1727002242148,-151.0,0.00025218,7]
[338882850,1727002242156,-250.251756,0.00025218,7]
[338882851,1727002242166,-250.251756,0.00025218,7]
[338882852,1727002242177,-152.013798,0.00025218,7]
[338882853,1727002242187,-6546.92786314,0.00025236,2]
[338882854,1727002242199,-205.45752426,0.00025244,2]
[338882855,1727002242296,-500.0,0.00025244,2]
[338882856,1727002242309,-500.0,0.00025244,2]
[338882857,1727002242319,-500.0,0.00025244,2]
[338882858,1727002242328,-500.0,0.00025244,2]
[338882859,1727002242340,-500.0,0.00025244,2]
[338882860,1727002242352,-500.0,0.00025244,2]
[338882861,1727002242362,-382.4981439,0.00025244,2]
[338882862,1727002242372,-3893.94894888,0.00025244,15]
[338882872,1727002243094,-23.3721043,0.00025244,15]
[338882873,1727002243105,-6265.0,0.00025244,15]
[338882874,1727002243119,-1618.08200014,0.00025244,15]
[338882939,1727002767889,500.0,0.00024657,120]
[338882985,1727003226147,-813.0,0.00016,2]
[338882986,1727003226173,-310.10376655,0.000208,2]
[338882987,1727003226196,-163.24830901,0.000209,2]
[338882988,1727003226219,-3000.000002,0.000209,2]
[338882989,1727003226247,-300.0,0.00020999,2]
[338882990,1727003226271,-300.0,0.00020999,2]
[338882991,1727003226293,-500.0,0.00021,30]
[338882992,1727003226316,-500.0,0.00021,30]
[338882993,1727003226338,-500.000001,0.00021,30]
[338882994,1727003226360,-150.0,0.00021,2]
[338882995,1727003226381,-166.666666,0.00021918,2]
[338882996,1727003226402,-163.24830901,0.00022239,2]
[338882997,1727003226424,-285.338653,0.00022391,2]
[338882998,1727003226445,-166.666666,0.00022454,2]
[338882999,1727003226468,-4944.12933348,0.00022707,2]
[338883001,1727003234107,-158.014098,0.0002089,2]
[338883002,1727003234132,-158.014098,0.00020958,2]
[338883003,1727003234157,-158.014098,0.00021026,2]
[338883004,1727003234181,-158.014098,0.00021094,2]
[338883005,1727003234205,-158.014098,0.00021162,2]
[338883006,1727003234229,-158.014098,0.0002123,2]
[338883007,1727003234252,-158.014098,0.00021298,2]
[338883008,1727003234275,-158.014098,0.00021366,2]
[338883009,1727003234300,-158.014098,0.00021434,2]
[338883010,1727003234324,-158.014098,0.00021502,2]
[338883011,1727003234348,-158.014098,0.0002157,2]
[338883012,1727003234371,-158.014098,0.00021638,2]
[338883013,1727003234395,-158.014098,0.00021706,2]
[338883014,1727003234417,-158.014098,0.00021774,2]
[338883015,1727003234441,-158.014098,0.00021842,2]
[338883016,1727003234466,-158.014098,0.0002191,2]
[338883017,1727003234491,-158.014098,0.00021978,2]
[338883018,1727003234513,-1437.31212546,0.00022707,2]
[338883024,1727003341110,868.9,0.00025,120]
[338883026,1727003370111,-163.24830901,0.00022606,2]
[338883027,1727003370137,-300.0,0.00022706,2]
[338883028,1727003370161,-300.0,0.00022706,2]
[338883029,1727003370186,-7331.28531883,0.00022707,2]
[338883089,1727003432360,-300.0,0.00022706,2]
[338883091,1727003432369,-158.17242127,0.00022706,2]
[338883093,1727003432381,-141.82757873,0.00022706,2]
[338883096,1727003432391,-11187.27322223,0.00022707,2]
[338883098,1727003432401,-166.666666,0.00022991,2]
[338883099,1727003432411,-6972.41032696,0.00023355,2]
[338883102,1727003432422,-1177.06582521,0.00023476,2]
[338883104,1727003432435,-166.666666,0.00023528,2]
[338883106,1727003432445,-5688.08971487,0.00023654,2]
[338883129,1727003438442,-1284.32061209,0.00023654,2]
[338883131,1727003438452,-608.48652369,0.00023707,2]
[338883507,1727003449502,-24900.0,0.00022859,2]
[338883508,1727003449512,-1089.69445455,0.00023707,2]
[338883509,1727003449522,-348.89066024,0.00023807,2]
[338883510,1727003449531,-6972.41032696,0.0002386,2]
[338883511,1727003449541,-59137.5314757,0.0002388,3]
[338883512,1727003449550,-44502.6780016,0.0002388,3]
[338883513,1727003449560,-500.0,0.00023889,2]
[338883514,1727003449572,-500.0,0.00023889,2]
[338883515,1727003449585,-500.0,0.00023889,2]
[338883516,1727003449597,-500.0,0.00023889,2]
[338883517,1727003449610,-602.30984954,0.00023889,2]
[338883518,1727003449624,-500.0,0.00023889,2]
[338883519,1727003449636,-474.86129838,0.00023889,2]
[338883520,1727003449648,-59137.5314757,0.0002389,3]
[338883521,1727003449661,-32011.09148273,0.0002389,3]
[338883522,1727003449809,-442.57142991,0.0002389,3]
[338883523,1727003449842,-2790.6539306,0.0002389,3]
[338883564,1727004449151,-320.5690652,0.00020047,2]
[338883565,1727004449177,-183.173749,0.00020197,2]
[338883566,1727004449203,-183.173749,0.00020548,2]
[338883567,1727004449234,-183.173749,0.00020899,2]
[338883568,1727004449256,-300.0,0.00020899,2]
[338883569,1727004449278,-300.0,0.00020899,2]
[338883570,1727004449303,-10580.19968382,0.000209,2]
[338883571,1727004449325,-232.28264423,0.00021,30]
[338883579,1727004556115,-1198.89178192,0.000167,2]
[338883580,1727004556137,-187.46242352,0.000191,12]
[338883581,1727004556158,-287.37586487,0.000209,2]
[338883582,1727004556180,-277.38695524,0.00021,30]
[338883583,1727004556204,-3000.0,0.00021,2]
[338883584,1727004556225,-300.0,0.00021009,2]
[338883585,1727004556249,-300.0,0.00021009,2]
[338883586,1727004556276,-5572.348469,0.0002101,2]
[338883587,1727004556300,-183.173749,0.0002125,2]
[338883588,1727004556322,-2838.60838065,0.00021323,2]
[338883589,1727004568091,-151.36378773,0.0002128,2]
[338883590,1727004568113,-22061.39161935,0.00021323,2]
[338883591,1727004568135,-1622.12016277,0.000217,2]
[338883592,1727004568156,-1591.0624963,0.000218,2]
[338883593,1727004568308,-166.666666,0.00021918,2]
[338883594,1727004568330,-166.666666,0.00022431,2]
[338883595,1727004604472,6775.83273425,0.00021775,2]
[338883596,1727004604797,4726.64490921,0.00022235,2]
[338883626,1727004632477,-6775.83273425,0.00022147,2]
[338883627,1727004632487,-876.80350575,0.00022235,2]
[338883635,1727004638519,-180.01871919,0.00022135,2]
[338883636,1727004638528,-6009.02281641,0.00022235,2]
[338883638,1727004638799,-13287.52876863,0.00022235,2]
[338883640,1727004638811,-6775.83273425,0.00022303,2]
[338883642,1727004638823,-276.8321908,0.000225,2]
[338883644,1727004638836,-6775.83273425,0.00022574,2]
[338883645,1727004638847,-300.0,0.00022783,2]
[338883646,1727004638858,-300.0,0.00022783,2]
[338883647,1727004638868,-6775.83273425,0.00022919,2]
[338883648,1727004638878,-166.666666,0.00022944,2]
[338883649,1727004638888,-6775.83273425,0.00023143,2]
[338883650,1727004638898,-153.0,0.00023342,2]
[338883651,1727004638908,-153.0,0.00023342,2]
[338883652,1727004638918,-153.0,0.00023342,2]
[338883653,1727004638928,-153.0,0.00023342,2]
[338883654,1727004638940,-153.0,0.00023342,2]
[338883655,1727004638951,-153.0,0.0002339,2]
[338883656,1727004638960,-153.0,0.0002339,2]
[338883657,1727004638971,-153.0,0.0002339,2]
[338883658,1727004638982,-6775.83273425,0.00023433,2]
[338883659,1727004638992,-166.666666,0.00023456,2]
[338883660,1727004639002,-150.31734997,0.00023546,2]
[338883661,1727004639012,-500.0,0.00023651,3]
[338883662,1727004639021,-500.0,0.00023651,3]
[338883663,1727004639031,-500.0,0.00023651,3]
[338883664,1727004639041,-500.0,0.00023651,3]
[338883665,1727004639051,-500.0,0.00023651,3]
[338883666,1727004639061,-321.52442786,0.00023651,3]
[338883667,1727004639070,-500.0,0.00023651,3]
[338883668,1727004639080,-500.0,0.00023651,3]
[338883669,1727004639091,-500.0,0.00023651,3]
[338883670,1727004639102,-500.0,0.00023651,3]
[338883671,1727004639111,-500.0,0.00023651,3]
[338883672,1727004639122,-500.0,0.00023651,3]
[338883673,1727004639132,-500.0,0.00023651,3]
[338883674,1727004639142,-500.0,0.00023651,3]
[338883675,1727004639153,-500.0,0.00023651,3]
[338883676,1727004639165,-266.0,0.00023651,3]
[338883677,1727004639175,-6775.83273427,0.00023717,2]
[338883678,1727004639184,-348.89066024,0.00023788,2]
[338883679,1727004639194,-348.89066024,0.00023789,2]
[338883680,1727004639204,-348.89066024,0.00023789,2]
[338883681,1727004639214,-348.89066024,0.0002379,2]
[338883682,1727004639223,-348.89066024,0.0002379,2]
[338883683,1727004639233,-150.112233,0.000238,4]
[338883684,1727004639242,-150.112235,0.000238,2]
[338883685,1727004639252,-375.53744385,0.000238,2]
[338883686,1727004639261,-500.0,0.00023879,2]
[338883687,1727004639274,-500.0,0.00023879,2]
[338883688,1727004639284,-500.0,0.00023879,2]
[338883689,1727004639293,-500.0,0.00023879,2]
[338883690,1727004639302,-602.30984954,0.00023879,2]
[338883691,1727004639311,-500.0,0.00023879,2]
[338883692,1727004639320,-474.86129838,0.00023879,2]
[338883693,1727004639330,-823.5,0.0002388,3]
[338883694,1727004639339,-63112.3140895,0.0002388,3]
[338883695,1727004639349,-10327.98767582,0.0002388,3]
[338883696,1727004639361,-480.02913384,0.0002388,3]
[338883697,1727004639377,-16080.0,0.0002388,3]
[338883698,1727004639388,-674.80666933,0.0002388,3]
[338883723,1727004640349,-2006.6392084,0.0002388,3]
[338883729,1727004640395,-1574.5,0.0002388,3]
[338883731,1727004640407,-39626.53151791,0.0002388,3]
[338883733,1727004640417,-205.45752426,0.00023888,2]
[338883735,1727004640426,-500.0,0.00023888,2]
[338883737,1727004640436,-382.4981439,0.00023888,2]
[338883739,1727004640445,-500.0,0.00023888,2]
[338883741,1727004640455,-500.0,0.00023888,2]
[338883743,1727004640465,-500.0,0.00023888,2]
[338883745,1727004640474,-500.0,0.00023888,2]
[338883747,1727004640483,-500.0,0.00023888,2]
[338883749,1727004640493,-500.0,0.00023888,2]
[338883751,1727004640502,-51486.15596404,0.00023888,15]
[338883753,1727004640511,-151.0,0.00023888,7]
[338883755,1727004640521,-151.0,0.00023888,7]
[338883757,1727004640533,-152.745032,0.00023888,7]
[338883759,1727004640542,-151.0,0.00023888,7]
[338883761,1727004640551,-151.0,0.00023888,7]
[338883763,1727004640561,-153.104908,0.00023888,7]
[338883765,1727004640571,-151.0,0.00023888,7]
[338883767,1727004640581,-151.0,0.00023888,7]
[338883769,1727004640591,-151.0,0.00023888,7]
[338883771,1727004640601,-151.0,0.00023888,7]
[338883773,1727004640612,-151.0,0.00023888,7]
[338883775,1727004640626,-278.392338,0.00023888,7]
[338883778,1727004640636,-236.916691,0.00023888,7]
[338883779,1727004640645,-236.916691,0.00023888,7]
[338883792,1727004640748,-151.0,0.00023888,7]
[338883794,1727004640758,-287.287461,0.00023888,7]
[338883796,1727004640768,-151.0,0.00023888,7]
[338883798,1727004640777,-143073.99275429,0.00023888,15]
[338883800,1727004640789,-4898.6450412,0.00023888,15]
[338883919,1727004644248,-165.19786206,0.00022318,2]
[338883921,1727004644260,-14.82085712,0.00022318,2]
[338883923,1727004644273,-151.0,0.00023888,7]
[338883925,1727004644284,-151.0,0.00023888,7]
[338883927,1727004644295,-151.0,0.00023888,7]
[338883929,1727004644304,-21266.58346325,0.00023888,15]
[338883931,1727004644318,-4443.80563283,0.00023888,15]
[338883941,1727004646414,-180.01871918,0.000225,2]
[338883942,1727004646426,-151.0,0.00023888,7]
[338883943,1727004646437,-151.0,0.00023888,7]
[338883944,1727004646447,-153.88128082,0.00023888,15]
[338884022,1727005637648,199.0,0.00025,120]
[338884026,1727005762173,-1144.02336944,0.0001833,2]
[338884028,1727005770111,-1855.97663056,0.0001833,2]
[338884029,1727005770133,-157.7567099,0.0001859,2]
[338884030,1727005770158,-157.75670972,0.00018712,2]
[338884031,1727005770179,-225.516215,0.0001879,2]
[338884032,1727005770201,-157.75670972,0.00018833,2]
[338884033,1727005770224,-225.516215,0.00018841,2]
[338884034,1727005770248,-225.516215,0.00018893,2]
[338884035,1727005770270,-225.516215,0.00018944,2]
[338884036,1727005770292,-157.75670972,0.00018955,2]
[338884037,1727005770313,-225.516215,0.00018996,2]
[338884038,1727005770335,-225.516215,0.00019047,2]
[338884039,1727005770358,-157.75670972,0.00019076,2]
[338884040,1727005770380,-225.516215,0.00019099,2]
[338884041,1727005770401,-246.6908419,0.00019144,2]
[338884042,1727005770424,-225.516215,0.0001915,2]
[338884043,1727005770446,-157.75670972,0.00019198,2]
[338884044,1727005770468,-225.516215,0.00019202,2]
[338884045,1727005770491,-225.516215,0.00019253,2]
[338884046,1727005770515,-225.516215,0.00019305,2]
[338884047,1727005770536,-157.75670972,0.00019319,2]
[338884048,1727005770557,-225.516215,0.00019356,2]
[338884049,1727005770578,-225.516215,0.00019408,2]
[338884050,1727005770599,-300.0,0.00019441,2]
[338884051,1727005770621,-300.0,0.00019441,2]
[338884052,1727005770642,-157.75670972,0.00019441,2]
[338884053,1727005770662,-225.516215,0.00019459,2]
[338884054,1727005770684,-225.516215,0.00019511,2]
[338884055,1727005770705,-225.516215,0.00019563,2]
[338884056,1727005770728,-157.75670972,0.00019563,2]
[338884057,1727005770751,-225.516215,0.00019614,2]
[338884058,1727005770773,-225.516215,0.00019666,2]
[338884059,1727005770795,-157.75670972,0.00019684,2]
[338884060,1727005770818,-225.516215,0.00019717,2]
[338884061,1727005770840,-225.516215,0.00019769,2]
[338884062,1727005770863,-157.75670972,0.00019806,2]
[338884063,1727005770885,-271.07172,0.0001984,2]
[338884064,1727005770907,-157.75670972,0.00019927,2]
[338884065,1727005770932,-5000.0,0.0002,2]
[338884066,1727005770952,-157.75670972,0.00020049,2]
[338884067,1727005770975,-24900.0,0.00020076,2]
[338884068,1727005770998,-157.75670972,0.00020171,2]